Workbook

Sheet Feuil1
A1: Modification des performances moyennes de troupeau
A3: Données du troupeau
C5: LAIT (kg) | D5: MG (kg) | E5: MP (kg) | F5: TB (g/kg) | G5: TP (g/kg)
B6: AUTRE RACE | C6: 9329 | D6: =C6*F6/1000 -> 364.7639 | E6: =C6*G6/1000 -> 297.5951 | F6: 39.1 | G6: 31.9
B7: JERSIAISE | C7: 5052 | D7: =C7*F7/1000 -> 279.3756 | E7: =C7*G7/1000 -> 193.4916 | F7: 55.3 | G7: 38.3
A10: (% appliqués au lait et MG/MP puis calcul des TB/TP)
A12: % JERSIAISE | B12: LAIT (kg) | C12: MG (kg) | D12: MP (kg) | E12: TB (g/L) | F12: gain | G12: TP (g/L) | H12: gain | I12: prix du lait/1000L | J12: gain économique/1000L
A13: 0 | B13: =C6 -> 9329 | C13: =$D$6 -> 364.7639 | D13: =E6 -> 297.5951 | E13: =(C13/(B13/1.032))*1000 -> 40.3512 | G13: =D13/(B13/1.033)*1000 -> 32.9527 | I13: =300+(E13-38)*2.6+(G13-32)*6.6 -> 312.40094
A14: 0.1 | B14: =((C$6*(1-$A14)+C$7*$A14)) -> 8901.3 | C14: =((D$6*(1-$A14)+D$7*$A14)) -> 356.22507 | D14: =((E$6*(1-$A14)+E$7*$A14)) -> 287.18475 | E14: =(C14/(B14/1.032))*1000 -> 41.30006541 | F14: =E14-E$13 -> 0.9488654107 | G14: =D14/(B14/1.033)*1000 -> 33.32792365 | H14: =G14-G$13 -> 0.375223646 | I14: =300+(E14-38)*2.6+(G14-32)*6.6 -> 317.3444661 | J14: =I14-$I$13 -> 4.943526131
A15: 0.25 | B15: =((C$6*(1-$A15)+C$7*$A15)) -> 8259.75 | C15: 343.416825 | D15: 271.569225 | E15: 42.90761384 | F15: =E15-E$13 -> 2.556413838 | G15: 33.96361989 | H15: =G15-G$13 -> 1.010919895 | I15: 325.7196873 | J15: =I15-$I$13 -> 13.31874728
A16: 0.5 | B16: 7190.5 | C16: 322.06975 | D16: 245.54335 | E16: 46.22432126 | F16: 5.873121257 | G16: 35.27519373 | H16: 2.322493735 | I16: 342.9995139 | J16: 30.59857392
A17: 0.75 | B17: 6121.25 | C17: 300.722675 | D17: 219.517475 | E17: 50.6997428 | F17: 10.3485428 | G17: 37.04497475 | H17: 4.092274748 | I17: 366.3161646 | J17: 53.91522461
A18: 1 | B18: 5052 | C18: 279.3756 | D18: 193.4916 | E18: 57.0696 | F18: 16.7184 | G18: 39.5639 | H18: 6.6112 | I18: 399.5027 | J18: 87.10176

Sheet Feuil2

Sheet Feuil3
